bitfinex/quotes_SOLUSD_20250728
["timestamp","ask_amount","ask_price","bid_price","bid_amount"]
[1753685348158,42.47641552,194.31,194.3,0.06]
[1753685348752,5.81641552,194.31,194.3,0.06]
[1753685349060,48.21603994,194.31,194.3,0.06]
[1753685349358,65.00072391,194.31,194.3,0.06]
[1753685349529,16.78468397,194.3,194.26,0.06]
[1753685349728,42.37962442,194.29,194.26,0.06]
[1753685349951,43.04962442,194.29,194.26,0.06]
[1753685350154,42.37962442,194.29,194.26,0.06]
[1753685350358,0.67,194.28,194.26,0.06]
[1753685350665,41.78747516,194.27,194.26,0.06]
[1753685351094,42.45747516,194.27,194.26,0.06]
[1753685353852,42.43747516,194.27,194.26,0.06]
[1753685355981,0.67,194.3,194.26,5.79962442]
[1753685356275,36.58,194.29,194.28,5.73962442]
[1753685356675,36.58,194.29,194.27,5.73962442]
[1753685356676,37.25,194.29,194.27,5.73962442]
[1753685356960,5.14668039,194.3,194.27,5.73962442]
[1753685357171,0.67,194.28,194.27,5.73962442]
[1753685357339,5.81721021,194.28,194.27,5.73962442]
[1753685357540,36.58,194.28,194.27,5.73962442]
[1753685357942,36.58,194.28,194.26,5.79962442]
[1753685357943,37.25,194.28,194.26,5.79962442]
[1753685358156,0.71,194.27,194.26,5.79962442]
[1753685358358,36.58,194.28,194.26,0.06]
[1753685358545,36.58,194.28,194.26,5.79962442]
[1753685358942,5.85615067,194.32,194.26,0.24]
[1753685359268,36.56,194.31,194.29,5.73962442]
[1753685359461,42.41648114,194.31,194.26,0.06]
[1753685359634,5.85648114,194.31,194.29,5.73962442]
[1753685359833,36.56,194.3,194.29,5.73962442]
[1753685360239,36.56,194.3,194.26,0.24]
[1753685360439,37.3,194.3,194.28,5.73962442]
[1753685360763,0.03,194.3,194.29,5.91962442]
[1753685362451,0.03,194.3,194.29,5.73962442]
[1753685364456,36.57,194.3,194.29,5.73962442]
[1753685366142,37.28,194.3,194.29,5.73962442]
[1753685368272,42.42668039,194.3,194.27,5.73962442]
[1753685368581,0.71,194.29,194.27,5.73962442]
[1753685368756,0.71,194.29,194.28,5.73962442]
[1753685369167,0.71,194.29,194.26,26.06]
[1753685369471,0.71,194.29,194.28,5.73962442]
[1753685371579,41.71668039,194.3,194.28,5.73962442]
[1753685371762,42.42668039,194.3,194.29,5.73962442]
[1753685373384,42.42668039,194.3,194.28,5.73962442]
[1753685373562,0.71,194.29,194.28,5.73962442]
[1753685375375,41.71668039,194.3,194.27,26.0]
[1753685375679,41.71668039,194.3,194.29,5.73962442]
[1753685376081,41.69668039,194.3,194.29,5.73962442]
[1753685376480,42.40668039,194.3,194.29,5.73962442]
[1753685377560,42.40668039,194.3,194.27,26.0]
[1753685377762,5.85694528,194.29,194.28,5.73962442]
[1753685377970,5.85694528,194.29,194.26,0.06]
[1753685378169,37.23,194.28,194.26,0.06]
[1753685378572,0.71,194.27,194.26,0.06]
[1753685380073,5.85747516,194.27,194.26,0.06]
[1753685380590,18.63682489,194.3,194.26,5.79962442]
[1753685380591,5.85694528,194.29,194.26,5.79962442]
[1753685380767,36.52,194.28,194.26,0.06]
[1753685380974,36.52,194.28,194.27,5.73962442]
[1753685382798,36.52,194.28,194.27,5.79962442]
[1753685383191,36.52,194.28,194.27,0.06]
[1753685383192,37.23,194.28,194.27,0.06]
[1753685383565,59.75430839,194.28,194.26,0.06]
[1753685383763,37.23,194.27,194.26,0.06]
[1753685384501,42.37747516,194.27,194.26,0.06]
[1753685387086,0.03,194.3,194.26,5.79962442]
[1753685387397,36.52,194.29,194.26,0.3]
[1753685388303,36.52,194.29,194.26,0.06]
[1753685388676,36.52,194.29,194.28,5.73962442]
[1753685390799,37.18,194.29,194.28,5.73962442]
[1753685391180,36.52,194.29,194.28,5.73962442]
[1753685391702,36.52,194.29,194.26,0.06]
[1753685391899,36.52,194.29,194.28,5.73962442]
[1753685395702,37.18,194.29,194.28,5.73962442]
[1753685396885,42.3269893,194.29,194.26,0.06]
[1753685397085,42.3269893,194.29,194.27,5.73962442]
[1753685397086,0.66,194.28,194.27,5.73962442]
[1753685397485,0.66,194.28,194.26,5.79962442]
[1753685397680,37.18,194.27,194.26,5.79962442]
[1753685400814,42.32747516,194.27,194.26,5.79962442]
[1753685403890,36.52,194.27,194.26,5.79962442]
[1753685404212,0.03,194.3,194.26,5.79962442]
[1753685404381,0.03,194.3,194.29,31.73962442]
[1753685404585,36.55,194.3,194.29,31.73962442]
[1753685407009,0.03,194.3,194.29,37.71924884]
[1753685407183,0.03,194.33,194.29,42.86619412]
[1753685407380,0.03,194.33,194.32,31.73962442]
[1753685408293,0.03,194.33,194.32,31.97962442]
[1753685408508,0.03,194.33,194.32,5.97962442]
[1753685408707,0.03,194.33,194.32,5.73962442]
[1753685412716,0.69,194.33,194.32,31.73962442]
[1753685416993,0.03,194.33,194.32,31.73962442]
[1753685418217,0.73,194.33,194.32,31.73962442]
[1753685419016,0.73,194.33,194.32,5.73962442]
[1753685420314,0.03,194.33,194.32,5.73962442]
[1753685421520,0.73,194.33,194.32,5.73962442]
[1753685423521,0.03,194.33,194.32,5.73962442]
[1753685425328,0.73,194.33,194.32,5.73962442]
[1753685426402,0.03,194.33,194.32,5.73962442]
[1753685427328,0.73,194.33,194.32,5.73962442]
[1753685428828,5.87588586,194.33,194.32,5.73962442]
[1753685432103,42.35588586,194.33,194.32,5.73962442]
[1753685432731,5.87588586,194.33,194.32,5.73962442]
[1753685433027,42.35588586,194.33,194.32,5.73962442]
[1753685433415,37.21,194.33,194.32,5.73962442]
[1753685434825,5.87588586,194.33,194.32,5.73962442]
[1753685435015,42.35588586,194.33,194.32,5.73962442]
[1753685439507,0.03,194.33,194.32,11.12577509]
[1753685440926,0.03,194.33,194.32,28.1947822]
[1753685441748,0.03,194.33,194.32,11.12577509]
[1753685442029,0.03,194.33,194.32,11.64039015]
[1753685443545,0.03,194.33,194.32,11.92471329]
[1753685447940,0.03,194.33,194.32,11.40039015]
[1753685449730,0.03,194.34,194.32,11.92471329]
[1753685449928,0.03,194.34,194.33,5.97962442]
[1753685451346,0.03,194.34,194.33,5.73962442]
[1753685451539,0.03,194.34,194.33,5.97962442]
[1753685452143,0.03,194.34,194.33,11.12551028]
[1753685452847,0.03,194.34,194.33,47.58551028]
[1753685453368,0.03,194.37,194.36,26.0]
[1753685453577,0.03,194.37,194.36,31.73962442]
[1753685454047,0.73,194.37,194.36,31.73962442]
[1753685455422,0.03,194.37,194.36,31.73962442]
[1753685455627,0.03,194.37,194.36,36.884716]
[1753685456820,0.03,194.37,194.36,31.73962442]
[1753685458428,0.73,194.37,194.36,31.73962442]
[1753685460431,0.03,194.37,194.36,36.884716]
[1753685461628,0.03,194.37,194.36,31.73962442]
[1753685461837,0.73,194.37,194.36,31.73962442]
[1753685465055,0.03,194.37,194.36,31.73962442]
[1753685465359,0.73,194.37,194.36,31.73962442]
[1753685470958,0.03,194.37,194.36,29.66143185]
[1753685472663,0.73,194.37,194.36,29.66143185]
[1753685473567,0.03,194.37,194.36,34.80652343]
[1753685476538,0.73,194.37,194.36,29.66143185]
[1753685479165,0.73,194.37,194.34,5.2055566]
[1753685479166,5.87482687,194.37,194.34,0.06]
[1753685479373,0.69,194.36,194.34,3.72143185]
[1753685479543,0.69,194.36,194.3,0.06]
[1753685479544,3.66143185,194.35,194.3,0.06]
[1753685479744,1.6187,194.33,194.3,0.06]
[1753685480163,0.69,194.32,194.3,0.06]
[1753685480768,1.6187,194.33,194.31,5.72566373]
[1753685481356,0.69,194.32,194.31,5.72566373]
[1753685482459,0.69,194.32,194.3,0.06]
[1753685482668,0.69,194.32,194.31,5.72566373]
[1753685482980,0.69,194.32,194.3,5.78566373]
[1753685482981,4.53266377,194.32,194.3,5.78566373]
[1753685483181,3.84266377,194.31,194.3,5.78566373]
[1753685483379,4.53266377,194.31,194.3,0.06]
[1753685483585,4.53266377,194.31,194.3,31.78566373]
[1753685483953,0.69,194.31,194.3,31.78566373]
[1753685484866,0.69,194.31,194.3,0.06]
[1753685485386,5.83641552,194.31,194.3,0.06]
[1753685490880,37.09,194.31,194.3,0.06]
[1753685491988,37.09,194.31,194.3,5.78566373]
[1753685493487,0.69,194.31,194.3,5.78566373]
[1753685493673,37.09,194.31,194.3,5.78566373]
[1753685494789,36.4,194.33,194.3,5.78566373]
[1753685494992,0.69,194.32,194.31,5.72566373]
[1753685497783,36.4,194.33,194.31,5.72566373]
[1753685497990,37.09,194.33,194.31,5.72566373]
[1753685499707,36.4,194.33,194.3,5.20662501]
[1753685499877,36.4,194.33,194.32,5.72566373]
[1753685500201,10.10001102,194.36,194.35,26.0]
[1753685500583,10.10001102,194.36,194.35,31.72566373]
[1753685504992,10.79001102,194.36,194.35,31.72566373]
[1753685505188,10.79001102,194.36,194.33,26.0]
[1753685505389,10.79001102,194.36,194.35,5.72566373]
[1753685508296,10.10001102,194.36,194.35,5.72566373]
[1753685513812,10.77001102,194.36,194.35,5.72566373]
[1753685514197,10.10001102,194.36,194.35,5.72566373]
[1753685520324,10.77001102,194.36,194.35,5.72566373]
[1753685521502,10.10001102,194.36,194.35,5.72566373]
[1753685522316,10.77001102,194.36,194.35,5.72566373]
[1753685522920,10.10001102,194.36,194.35,5.72566373]
[1753685524702,10.77001102,194.36,194.35,5.72566373]
[1753685524906,10.77001102,194.36,194.34,0.06]
[1753685524907,15.9151026,194.36,194.34,0.06]
[1753685525128,37.03,194.35,194.34,0.06]
[1753685525331,42.17535631,194.35,194.34,0.06]
[1753685528930,42.17535631,194.35,194.34,26.06]
[1753685530619,42.17535631,194.35,194.34,0.06]
[1753685530939,47.90110031,194.35,194.34,0.06]
[1753685531122,64.68578428,194.35,194.34,0.06]
[1753685531511,64.97010742,194.35,194.34,0.06]
[1753685532734,59.24436342,194.35,194.34,0.06]
[1753685532922,64.97010742,194.35,194.34,0.06]
[1753685534936,64.95010742,194.35,194.34,0.06]
[1753685536019,64.95010742,194.35,194.34,1e-08]
[1753685536338,68.79372196,194.35,194.34,1e-08]
[1753685536940,28.61010742,194.35,194.34,1e-08]
[1753685537239,68.79335842,194.35,194.34,1e-08]
[1753685537413,28.61010742,194.35,194.34,1e-08]
[1753685537736,64.95010742,194.35,194.34,1e-08]
[1753685537935,28.61010742,194.35,194.34,1e-08]
[1753685538239,64.95010742,194.35,194.34,1e-08]
[1753685538626,68.79219639,194.35,194.34,1e-08]
[1753685540216,28.61010742,194.35,194.34,1e-08]
[1753685540427,64.95010742,194.35,194.34,1e-08]
[1753685544124,59.22436342,194.35,194.34,1e-08]
[1753685544435,28.61010742,194.35,194.34,1e-08]
[1753685544644,64.66578428,194.35,194.34,1e-08]
[1753685545527,67.35113991,194.35,194.34,1e-08]
[1753685546950,67.63546305,194.35,194.34,1e-08]
[1753685547334,71.47231598,194.35,194.34,1e-08]
[1753685549765,67.63546305,194.35,194.34,1e-08]
[1753685551759,71.47052874,194.35,194.34,1e-08]
[1753685553862,31.29546305,194.35,194.34,1e-08]
[1753685554025,67.61546305,194.35,194.34,1e-08]
[1753685555845,66.94546305,194.35,194.34,1e-08]
[1753685556430,60.93539591,194.35,194.34,1e-08]
[1753685556948,60.96539591,194.35,194.34,1e-08]
[1753685557728,44.18071194,194.35,194.34,1e-08]
[1753685558044,44.18071194,194.35,194.34,0.30000001]
[1753685559149,44.18071194,194.35,194.34,1e-08]
[1753685560325,67.37113991,194.35,194.34,1e-08]
[1753685564274,67.65546305,194.35,194.34,1e-08]
[1753685566532,60.96539591,194.35,194.34,1e-08]
[1753685566731,7.86071194,194.35,194.34,1e-08]
[1753685566937,7.86071194,194.35,194.34,0.30000001]
[1753685567138,5.17535631,194.35,194.34,6.02574401]
[1753685567332,41.47535631,194.35,194.34,0.30000001]
[1753685569938,41.47535631,194.35,194.34,1e-08]
[1753685570257,44.16010271,194.35,194.34,1e-08]
[1753685570464,44.86010271,194.35,194.34,1e-08]
[1753685571160,44.16010271,194.35,194.34,1e-08]
[1753685571880,44.86010271,194.35,194.34,1e-08]
[1753685573544,44.16010271,194.35,194.34,1e-08]
[1753685575173,44.86010271,194.35,194.34,1e-08]
[1753685576576,44.16010271,194.35,194.34,1e-08]
[1753685577277,2.7147464,194.35,194.34,5.72574401]
[1753685577439,36.31,194.35,194.34,6.02574401]
[1753685577869,36.31,194.35,194.34,5.72574401]
[1753685578046,41.45535631,194.35,194.34,1e-08]
[1753685578468,41.45535631,194.35,194.34,5.72574401]
[1753685578678,0.03,194.35,194.34,5.72574401]
[1753685578966,36.31,194.35,194.34,6.02574401]
[1753685579347,0.03,194.35,194.34,6.02574401]
[1753685580139,0.03,194.35,194.34,32.02574401]
[1753685580343,0.03,194.35,194.34,6.02574401]
[1753685580575,10.10001102,194.36,194.34,11.17136508]
[1753685580744,10.10001102,194.36,194.35,32.54027963]
[1753685580941,0.03,194.37,194.35,32.54027963]
[1753685581167,0.03,194.37,194.36,32.025744]
[1753685581441,0.03,194.4,194.39,44.35938397]
[1753685581668,0.03,194.44,194.39,62.81872486]
[1753685581966,0.03,194.44,194.41,5.725744]
[1753685582267,0.03,194.44,194.41,6.54012083]
[1753685582655,36.28,194.49,194.43,26.0]
[1753685582848,36.28,194.51,194.5,26.0]
[1753685583267,36.28,194.51,194.5,31.725744]
[1753685583474,41.42112384,194.51,194.5,31.725744]
[1753685584067,36.38,194.55,194.5,37.751488]
[1753685584255,36.38,194.55,194.54,5.725744]
[1753685584677,0.1,194.55,194.54,5.725744]
[1753685584991,5.24007537,194.55,194.53,5.725744]
[1753685585264,36.96,194.54,194.51,31.725744]
[1753685585466,11.56633928,194.53,194.47,5.725744]
[1753685585643,0.7,194.52,194.47,5.725744]
[1753685585844,36.26,194.51,194.45,5.725744]
[1753685586151,0.7,194.5,194.48,26.0]
[1753685586673,0.7,194.49,194.48,26.0]
[1753685587481,5.84165252,194.49,194.48,26.0]
[1753685587688,5.84165252,194.49,194.45,5.725744]
[1753685587857,36.26,194.48,194.45,5.725744]
[1753685588062,36.96,194.48,194.45,5.725744]
[1753685588288,36.96,194.48,194.47,26.0]
[1753685588819,36.96,194.48,194.41,0.3]
[1753685589083,6.425744,194.47,194.41,5.725744]
[1753685589386,0.7,194.46,194.44,26.0]
[1753685589562,41.4027102,194.45,194.44,26.0]
[1753685589764,41.4027102,194.45,194.4,5.725744]
[1753685589765,42.1027102,194.45,194.4,5.725744]
[1753685589982,0.7,194.44,194.4,5.725744]
[1753685590287,41.4027102,194.45,194.38,8.0685]
[1753685590288,0.7,194.43,194.39,5.725744]
[1753685590481,36.96,194.42,194.39,5.725744]
[1753685590686,36.24,194.41,194.39,31.725744]
[1753685590877,0.7,194.44,194.4,5.725744]
[1753685591078,36.24,194.43,194.4,5.725744]
[1753685591586,5.14350375,194.42,194.39,5.725744]
[1753685591978,5.84350375,194.42,194.39,5.725744]
[1753685592478,5.84350375,194.42,194.41,26.0]
[1753685592669,5.84350375,194.42,194.39,5.725744]
[1753685593968,36.24,194.41,194.39,5.725744]
[1753685594567,5.84350375,194.42,194.39,5.725744]
[1753685594767,41.38388815,194.41,194.39,5.725744]
[1753685595408,0.7,194.4,194.37,5.725744]
[1753685595792,0.7,194.39,194.34,5.72574401]
[1753685596006,36.24,194.38,194.34,5.72574401]
[1753685596312,0.7,194.37,194.34,5.72574401]
[1753685596494,36.24,194.38,194.36,26.0]
[1753685597001,5.14482687,194.37,194.36,26.0]
[1753685597710,36.24,194.37,194.36,5.725744]
[1753685599290,0.28432314,194.35,194.3,0.06]
[1753685599483,5.725744,194.31,194.3,0.06]
[1753685599691,42.655744,194.31,194.3,0.06]
[1753685599896,36.93,194.31,194.3,0.06]
[1753685600142,17.06900711,194.35,194.3,0.06]
[1753685600143,5.725744,194.34,194.3,0.06]
[1753685600296,36.93,194.33,194.3,0.06]
[1753685600485,36.93,194.33,194.27,0.06]
[1753685600691,0.69,194.32,194.27,5.785744]
[1753685600916,0.69,194.31,194.27,5.785744]
[1753685601128,41.38668039,194.3,194.27,5.785744]
[1753685602022,41.38668039,194.3,194.27,0.06]
[1753685602511,36.24,194.3,194.27,0.06]
[1753685603193,36.26,194.29,194.27,5.785744]
[1753685604597,36.26,194.29,194.28,26.0]
[1753685606424,36.95,194.29,194.28,26.0]
[1753685606695,36.26,194.29,194.28,26.0]
[1753685607706,0.69,194.31,194.28,26.0]
[1753685607918,36.26,194.29,194.28,26.0]
[1753685608496,0.69,194.34,194.28,31.725744]
[1753685608697,36.26,194.33,194.31,5.725744]
[1753685609114,36.95,194.33,194.31,5.725744]
[1753685609318,36.95,194.33,194.3,5.725744]
[1753685609692,36.95,194.33,194.3,26.0]
[1753685610012,0.69,194.32,194.3,26.0]
[1753685610219,41.40599605,194.33,194.3,26.0]
[1753685610531,0.69,194.32,194.3,26.0]
[1753685610730,0.69,194.31,194.3,26.0]
[1753685610910,0.69,194.31,194.29,26.0]
[1753685611234,36.26,194.3,194.29,26.0]
[1753685611525,36.95,194.3,194.29,26.0]
[1753685611708,36.95,194.3,194.27,26.06]
[1753685611901,36.95,194.3,194.27,31.785744]
[1753685612097,36.26,194.3,194.29,5.725744]
[1753685612302,36.26,194.3,194.28,5.725744]
[1753685612609,5.83617615,194.32,194.3,26.0]
[1753685612818,36.95,194.31,194.3,26.0]
[1753685614125,42.09641552,194.31,194.3,26.0]
[1753685614702,42.09641552,194.31,194.27,26.06]
[1753685614906,41.40641552,194.31,194.3,26.0]
[1753685615608,42.09641552,194.31,194.3,26.0]
[1753685619637,42.09641552,194.31,194.27,31.785744]
[1753685619939,41.40641552,194.31,194.3,26.0]
[1753685620115,41.40641552,194.31,194.3,26.06]
[1753685620517,42.09641552,194.31,194.3,0.06]
[1753685625024,5.83641552,194.31,194.3,0.06]
[1753685625223,42.07641552,194.31,194.3,0.06]
[1753685637761,5.83641552,194.31,194.3,0.06]
[1753685637955,42.07641552,194.31,194.3,0.06]
[1753685639383,5.14606923,194.33,194.3,0.06]
[1753685639678,36.24,194.32,194.3,5.785744]
[1753685639879,0.66,194.31,194.3,0.06]
[1753685640179,5.80641552,194.31,194.3,0.06]
[1753685642557,5.83641552,194.31,194.3,0.06]
[1753685644875,0.03,194.31,194.3,0.06]
[1753685646056,0.03,194.31,194.3,5.785744]
[1753685646876,36.27,194.31,194.3,5.785744]
[1753685647178,36.27,194.31,194.3,0.06]
[1753685647674,36.27,194.31,194.3,5.785744]
[1753685648553,36.27,194.31,194.3,0.06]
[1753685650768,36.93,194.31,194.3,0.06]
[1753685650963,42.07641552,194.31,194.3,0.06]
[1753685655060,36.27,194.31,194.3,0.06]
[1753685655394,36.27,194.31,194.3,5.785744]
[1753685656290,36.27,194.31,194.3,0.06]
[1753685658976,36.96,194.31,194.3,0.06]
[1753685659789,36.27,194.31,194.3,0.06]
[1753685660083,36.27,194.31,194.3,5.785744]
[1753685661361,0.03,194.31,194.3,32.085744]
[1753685661561,36.25,194.31,194.3,32.085744]
[1753685661777,0.03,194.31,194.3,32.085744]
[1753685662961,0.03,194.31,194.3,37.23242439]
[1753685663375,0.03,194.31,194.3,36.93242439]
[1753685664070,0.03,194.31,194.3,31.785744]
[1753685664696,0.03,194.31,194.3,37.23242439]
[1753685664886,0.03,194.31,194.3,36.93242439]
[1753685665086,0.03,194.31,194.3,31.785744]
[1753685666860,0.72,194.31,194.3,26.06]
[1753685667064,0.72,194.31,194.3,31.785744]
[1753685671314,0.72,194.31,194.3,26.06]
[1753685672306,0.72,194.31,194.3,31.785744]
[1753685672614,36.23,194.31,194.3,32.085744]
[1753685673697,0.03,194.31,194.3,32.085744]
[1753685673896,0.03,194.31,194.3,31.785744]
[1753685675122,36.23,194.31,194.3,31.785744]
[1753685675716,0.03,194.31,194.3,16.95816839]
[1753685676998,0.03,194.31,194.3,10.93242439]
[1753685677419,0.03,194.31,194.3,5.785744]
[1753685678003,0.03,194.31,194.3,31.785744]
[1753685678200,36.92,194.31,194.3,0.06]
[1753685679822,42.06641552,194.31,194.3,0.06]
[1753685686721,47.79215952,194.31,194.3,0.06]
[1753685686893,64.57684349,194.31,194.3,0.06]
[1753685687097,68.429871,194.31,194.3,0.06]
[1753685687292,68.429871,194.31,194.3,1e-08]
[1753685687293,68.71419414,194.31,194.3,1e-08]
[1753685687803,77.90655589,194.31,194.3,1e-08]
[1753685689222,72.18081189,194.31,194.3,1e-08]
[1753685689827,77.90655589,194.31,194.3,1e-08]
[1753685690213,74.43993814,194.31,194.3,1e-08]
[1753685690415,68.71419414,194.31,194.3,1e-08]
[1753685690925,74.43993814,194.31,194.3,1e-08]
[1753685692226,68.71419414,194.31,194.3,1e-08]
[1753685693834,74.43993814,194.31,194.3,1e-08]
[1753685694513,0.28432314,194.3,194.26,0.06]
[1753685694721,5.725744,194.27,194.26,0.06]
[1753685694912,42.575744,194.27,194.26,0.06]
[1753685696112,47.72321916,194.27,194.26,0.06]
[1753685696739,64.50790313,194.27,194.26,0.06]
[1753685697312,67.19419865,194.27,194.26,0.06]
[1753685697733,17.06900711,194.26,194.25,1e-08]
[1753685698118,28.61249125,194.26,194.25,1e-08]
[1753685700437,64.50816811,194.26,194.25,1e-08]
[1753685700613,63.83816811,194.26,194.25,1e-08]
[1753685701446,64.50816811,194.26,194.25,1e-08]
[1753685701644,2.68629552,194.27,194.25,6.02574401]
[1753685701836,5.14721021,194.28,194.25,5.72574401]
[1753685702036,36.18,194.27,194.26,0.3]
[1753685702206,41.32747516,194.27,194.26,0.3]
[1753685702514,41.32747516,194.27,194.25,1e-08]
[1753685702712,5.725744,194.26,194.25,1e-08]
[1753685702909,6.395744,194.26,194.25,1e-08]
[1753685703325,5.725744,194.26,194.25,1e-08]
[1753685703530,6.395744,194.26,194.25,1e-08]
[1753685704126,11.54348414,194.26,194.25,1e-08]
[1753685704520,32.44501751,194.26,194.25,1e-08]
[1753685705240,0.28432314,194.24,194.22,1e-08]
[1753685705412,17.06900711,194.22,194.17,0.06]
[1753685705754,17.06900711,194.22,194.15,0.06]
[1753685705755,16.78468397,194.17,194.15,0.06]
[1753685705915,41.905744,194.16,194.15,0.06]
[1753685706318,47.05613542,194.16,194.15,0.06]
[1753685707847,41.33039142,194.16,194.15,0.06]
[1753685708351,5.15017047,194.17,194.15,0.36]
[1753685708656,36.18,194.16,194.15,0.06]
[1753685709041,36.18,194.16,194.15,0.36]
[1753685709555,41.33039142,194.16,194.15,0.06]
[1753685710058,47.72613542,194.16,194.15,0.06]
[1753685711053,41.33039142,194.16,194.15,0.06]
[1753685711641,5.15039142,194.16,194.15,0.06]
[1753685711841,41.33039142,194.16,194.15,0.06]
[1753685712247,12.87442078,194.19,194.15,0.06]
[1753685712455,36.18,194.18,194.15,0.36]
[1753685712652,10.87533975,194.19,194.15,0.36]
[1753685712856,36.18,194.18,194.15,0.06]
[1753685713354,41.905744,194.18,194.15,0.06]
[1753685714261,5.15012617,194.17,194.15,0.06]
[1753685714443,36.18,194.16,194.15,0.06]
[1753685716649,5.81978431,194.19,194.15,5.785744]
[1753685716849,36.18,194.18,194.15,6.085744]
[1753685719368,36.18,194.17,194.15,6.085744]
[1753685720265,36.87,194.17,194.15,0.06]
[1753685720571,0.69,194.16,194.15,0.06]
[1753685721447,5.84039142,194.16,194.15,0.06]
[1753685725677,5.15039142,194.16,194.15,0.06]
[1753685725873,5.84039142,194.16,194.15,0.06]
[1753685728872,5.15039142,194.16,194.15,0.06]
[1753685729571,5.84039142,194.16,194.15,0.06]
[1753685734657,42.02039142,194.16,194.15,0.06]
[1753685735253,41.33039142,194.16,194.15,0.06]
[1753685735756,5.15039142,194.16,194.15,0.06]
[1753685735955,41.33039142,194.16,194.15,0.06]
[1753685736755,42.02039142,194.16,194.15,0.06]
[1753685737678,36.18,194.16,194.15,6.085744]
[1753685738053,36.18,194.16,194.15,5.785744]
[1753685739160,36.18,194.16,194.15,0.06]
[1753685739563,41.33039142,194.16,194.15,0.06]
[1753685742352,36.18,194.16,194.15,0.06]
[1753685746926,0.03,194.17,194.15,0.06]
[1753685746927,0.03,194.17,194.15,5.785744]
[1753685747089,36.19,194.17,194.16,6.025744]
[1753685747295,0.03,194.17,194.16,6.025744]
[1753685748432,0.03,194.17,194.16,23.09475111]
[1753685749070,36.16,194.23,194.2,5.14933058]
[1753685749333,36.16,194.23,194.22,5.725744]
[1753685749694,36.87,194.23,194.21,5.725744]
[1753685749895,0.71,194.22,194.21,5.725744]
[1753685750396,0.71,194.22,194.2,5.725744]
[1753685750696,36.16,194.23,194.15,0.06]
[1753685750697,0.71,194.21,194.19,26.0]
[1753685750914,36.16,194.2,194.18,31.725744]
[1753685751091,36.87,194.2,194.18,31.725744]
[1753685752218,36.87,194.2,194.19,5.725744]
[1753685756123,0.71,194.2,194.19,5.725744]
[1753685756321,36.87,194.2,194.19,5.725744]
[1753685757120,36.16,194.2,194.19,5.725744]
[1753685758723,36.87,194.2,194.18,26.0]
[1753685759031,36.87,194.2,194.19,5.725744]
[1753685764940,36.16,194.2,194.19,5.725744]
[1753685766330,36.87,194.2,194.19,5.725744]
[1753685768337,36.85,194.2,194.19,5.725744]
[1753685768541,0.71,194.2,194.19,5.725744]
[1753685768718,36.85,194.2,194.19,5.725744]
[1753685771639,36.85,194.2,194.18,26.0]
[1753685771841,36.14,194.2,194.19,5.725744]
[1753685772038,41.28933058,194.2,194.19,5.725744]
[1753685772336,41.99933058,194.2,194.19,5.725744]
[1753685773043,5.14892801,194.22,194.19,5.725744]
[1753685773239,0.03,194.23,194.21,5.725744]
[1753685773433,0.03,194.23,194.22,5.725744]
[1753685773639,36.17,194.23,194.22,5.725744]
[1753685774027,0.03,194.2,194.19,0.51495957]
[1753685774233,0.74,194.2,194.19,31.725744]
[1753685774823,0.03,194.2,194.19,31.725744]
[1753685775936,0.74,194.2,194.19,31.725744]